bitfinex/quotes_ETHUSD_20241024
["timestamp","ask_amount","ask_price","bid_price","bid_amount"]
[1729793529132,4.67529721,2525.1,2524.7,6.13854005]
[1729793529342,4.02694564,2525.1,2524.7,6.13854005]
[1729793529504,0.06670564,2525.1,2524.7,6.13854005]
[1729793529835,3.9601,2525.2,2524.7,3.96077]
[1729793530239,0.06673881,2525.1,2524.7,3.96077]
[1729793530550,0.06673881,2525.1,2524.7,5.58854005]
[1729793531151,4.02697881,2525.1,2524.7,3.96077]
[1729793533242,4.02697881,2525.1,2524.6,3.24832616]
[1729793533243,3.96043,2525.0,2524.6,7.20931616]
[1729793533553,3.9607,2524.8,2524.6,0.82235611]
[1729793533856,4.85469072,2524.7,2524.3,0.82235611]
[1729793534080,3.96103,2524.6,2524.4,1.02312095]
[1729793534224,4.85469072,2524.7,2524.2,1.02312095]
[1729793534225,4.78743,2524.4,2524.2,1.02312095]
[1729793534426,8.74895,2524.4,2524.2,1.02312095]
[1729793534662,0.06593766,2524.3,2524.0,3.47324711]
[1729793534961,0.06593766,2524.3,2524.1,1.02312095]
[1729793536261,0.06593766,2524.3,2524.0,5.58964005]
[1729793536765,4.78746,2524.4,2524.0,5.58964005]
[1729793537059,0.06576214,2524.3,2524.1,1.02302197]
[1729793537260,0.06576214,2524.3,2524.0,1.62777005]
[1729793537427,0.06576214,2524.3,2524.0,2.65065668]
[1729793538365,0.06576214,2524.3,2524.0,6.61254668]
[1729793538542,0.06576214,2524.3,2524.0,5.58966005]
[1729793539922,0.06576214,2524.3,2524.0,1.62777005]
[1729793540150,0.06576214,2524.3,2524.0,1.0227457]
[1729793540349,0.06576214,2524.3,2523.9,6.34344005]
[1729793540933,0.06576214,2524.3,2524.0,5.58966005]
[1729793541165,0.06576214,2524.3,2524.0,5.58965005]
[1729793541937,0.06576214,2524.3,2523.9,2.38137005]
[1729793542288,3.96173,2524.2,2523.8,5.58994005]
[1729793542704,0.06523576,2524.1,2523.8,1.62777005]
[1729793543273,0.06523576,2524.1,2523.8,5.59004005]
[1729793544397,3.96169,2524.2,2523.8,5.59004005]
[1729793544691,0.06515482,2524.1,2523.9,1.62777005]
[1729793544900,0.06515482,2524.1,2524.0,5.58973005]
[1729793545102,0.7692,2524.7,2524.1,0.55]
[1729793545404,0.06340021,2524.6,2524.3,5.58922005]
[1729793545585,0.06340021,2524.6,2524.3,9.55060005]
[1729793545900,0.06340021,2524.6,2524.5,5.58895005]
[1729793546397,0.06366221,2524.6,2524.5,5.58895005]
[1729793546601,4.72159,2525.0,2524.5,5.58895005]
[1729793546797,0.06397329,2524.9,2524.5,5.58895005]
[1729793547469,4.02454329,2524.9,2524.5,5.58895005]
[1729793548776,0.06397329,2524.9,2524.5,5.58887005]
[1729793548966,0.06397329,2524.9,2524.6,5.58871005]
[1729793549168,0.06397329,2524.9,2524.7,3.96084]
[1729793549471,0.06397329,2524.9,2524.6,7.92188]
[1729793549805,0.06397329,2524.9,2524.7,3.96085]
[1729793550908,0.06397329,2524.9,2524.6,4.78984]
[1729793551107,0.06397329,2524.9,2524.7,3.96081]
[1729793551498,0.06397329,2524.9,2524.6,4.78984]
[1729793551924,0.06397329,2524.9,2524.7,3.96084]
[1729793554318,0.06397329,2524.9,2524.6,4.78984]
[1729793554994,0.06397329,2524.9,2524.6,8.75079]
[1729793555727,0.06397329,2524.9,2524.6,4.78984]
[1729793556139,0.06397329,2524.9,2524.6,3.96094]
[1729793556501,0.06397329,2524.9,2524.6,7.92189]
[1729793557140,0.06397329,2524.9,2524.5,3.96115]
[1729793557325,0.06397329,2524.9,2524.6,0.55]
[1729793558543,0.06397329,2524.9,2524.6,4.51091]
[1729793559603,0.06397329,2524.9,2524.6,8.47185]
[1729793559807,0.06397329,2524.9,2524.8,6.13847005]
[1729793560042,0.7917,2525.5,2525.2,3.96007]
[1729793560259,0.7917,2525.5,2525.1,5.58797005]
[1729793560411,4.75131,2525.5,2525.1,5.58797005]
[1729793560843,4.75131,2525.5,2525.1,3.9602]
[1729793561647,4.75131,2525.5,2525.1,5.58797005]
[1729793562018,0.7917,2525.5,2525.2,3.96001]
[1729793562218,0.7756,2525.7,2525.4,3.95973]
[1729793562447,0.7756,2525.7,2525.3,1.62777005]
[1729793562448,4.73491,2525.7,2525.3,4.77071]
[1729793562624,4.73491,2525.7,2525.3,6.39839005]
[1729793562825,4.73491,2525.7,2525.3,4.77062]
[1729793563035,0.7756,2525.7,2525.3,4.77062]
[1729793563219,0.7756,2525.7,2525.4,3.95974]
[1729793563418,0.06282917,2525.6,2525.3,4.7707]
[1729793563651,0.06282917,2525.6,2525.3,4.84979107]
[1729793563950,0.06282917,2525.6,2525.3,6.39837005]
[1729793564119,0.06282917,2525.6,2525.4,3.95974]
[1729793564322,0.06282917,2525.6,2525.3,6.39837005]
[1729793564511,4.02227917,2525.6,2525.3,0.8108]
[1729793565147,4.02227917,2525.6,2525.3,4.77069]
[1729793565148,0.06282917,2525.6,2525.3,4.77069]
[1729793565796,0.06282917,2525.6,2525.3,0.8108]
[1729793566156,0.06282917,2525.6,2525.3,4.77069]
[1729793566694,0.06282917,2525.6,2525.3,3.95989]
[1729793569403,0.06282917,2525.6,2525.4,3.95974]
[1729793569775,0.06282917,2525.6,2525.3,7.91972]
[1729793570104,0.06282917,2525.6,2525.3,3.95983]
[1729793570614,0.06282917,2525.6,2525.2,1.62777005]
[1729793570769,0.06282917,2525.6,2525.3,3.95992]
[1729793571682,0.06282917,2525.6,2525.2,3.96006]
[1729793572081,0.06282917,2525.6,2525.2,5.58783005]
[1729793572276,0.06282917,2525.6,2525.3,3.9599]
[1729793572678,4.02228917,2525.6,2525.2,3.96006]
[1729793573472,4.02228917,2525.6,2525.2,5.58783005]
[1729793573667,4.02228917,2525.6,2525.2,3.96001]
[1729793576207,4.02228917,2525.6,2525.2,3.96006]
[1729793576711,4.02230917,2525.6,2525.2,3.96007]
[1729793576908,7.98186917,2525.6,2525.2,3.96007]
[1729793577214,3.95961,2525.5,2525.1,8.47044]
[1729793577373,3.95961,2525.5,2525.1,4.51022]
[1729793577573,0.0627126,2525.4,2525.1,4.51022]
[1729793577870,0.0627126,2525.4,2525.2,5.58784005]
[1729793578201,3.95953,2525.6,2525.2,5.58784005]
[1729793578406,0.0628082,2525.5,2525.2,3.96007]
[1729793580212,0.0628082,2525.5,2525.1,6.13797005]
[1729793580389,1.62777005,2525.6,2525.1,4.51015]
[1729793580704,0.0628082,2525.5,2525.2,3.96]
[1729793580913,0.0628082,2525.5,2525.2,5.58777005]
[1729793581112,0.0628082,2525.5,2525.2,3.96]
[1729793581474,0.0628082,2525.5,2525.2,3.96006]
[1729793582692,0.0628082,2525.5,2525.1,6.13792005]
[1729793582874,0.0628082,2525.5,2525.1,8.47031]
[1729793583197,0.0628082,2525.5,2525.2,3.96]
[1729793584043,0.0628082,2525.5,2525.4,3.95976]
[1729793584393,3.959,2525.9,2525.4,4.03895082]
[1729793584600,0.06053825,2525.8,2525.4,3.95976]
[1729793584793,4.01968825,2525.8,2525.4,3.95976]
[1729793585054,0.06053825,2525.8,2525.5,5.58738005]
[1729793585194,0.06053825,2525.8,2525.6,4.51818801]
[1729793585401,3.95855,2526.2,2525.8,3.95913]
[1729793585595,0.06077604,2526.1,2525.8,1.62777005]
[1729793586317,4.01950604,2526.1,2525.7,5.58697005]
[1729793586523,3.95889,2526.0,2525.6,6.93542806]
[1729793586735,4.01950604,2526.1,2525.7,5.58704005]
[1729793586937,0.06059905,2525.9,2525.7,5.58704005]
[1729793587231,0.06056976,2525.8,2525.7,5.58704005]
[1729793587436,3.95853,2526.2,2525.7,6.67652986]
[1729793587639,0.06085651,2526.1,2525.7,5.58704005]
[1729793588004,4.01952651,2526.1,2525.7,5.58704005]
[1729793588200,0.06085651,2526.1,2525.7,5.58704005]
[1729793588533,0.06085651,2526.1,2525.8,5.58690005]
[1729793589441,0.06085651,2526.1,2525.7,6.13700005]
[1729793589925,4.01953651,2526.1,2525.7,2.17777005]
[1729793590096,0.06085651,2526.1,2525.7,6.13704005]
[1729793591364,4.01953651,2526.1,2525.7,6.13704005]
[1729793592541,4.01953651,2526.1,2525.7,2.17777005]
[1729793592921,4.01953651,2526.1,2525.7,0.55]
[1729793593659,3.95899,2525.9,2525.6,0.55]
[1729793593959,0.8069,2525.6,2525.2,6.34907005]
[1729793594156,4.76643,2525.6,2525.2,2.38907005]
[1729793594320,0.05878384,2525.5,2525.2,6.34913005]
[1729793594853,4.01849384,2525.5,2525.0,0.825]
[1729793595034,4.01849384,2525.5,2525.1,1.62777005]
[1729793595569,3.95971,2525.5,2525.1,1.62777005]
[1729793595723,3.95996,2525.3,2525.0,2.45277005]
[1729793595924,4.01852947,2525.4,2525.0,2.45277005]
[1729793596155,4.01852947,2525.4,2525.1,1.62777005]
[1729793596156,0.05853826,2525.2,2525.1,1.62777005]
[1729793596476,2.46690831,2525.2,2524.7,0.82235611]
[1729793596758,2.46690831,2525.2,2524.4,6.35857005]
[1729793596759,3.96062,2524.9,2524.4,6.35857005]
[1729793596961,3.96062,2524.9,2524.4,7.47281467]
[1729793597118,4.01866682,2524.8,2524.4,7.47281467]
[1729793597324,4.01866682,2524.8,2524.4,3.51151467]
[1729793597816,3.96089,2524.7,2524.4,1.62777005]
[1729793598022,3.96089,2524.7,2524.2,4.78235]
[1729793598023,4.01886075,2524.6,2524.2,4.78235]
[1729793598247,0.05780075,2524.6,2524.4,1.62777005]
[1729793600319,0.05780075,2524.6,2524.3,5.58923005]
[1729793600536,0.05780075,2524.6,2524.4,1.62777005]
[1729793601462,0.05780075,2524.6,2524.3,5.58923005]
[1729793601663,0.05780075,2524.6,2524.4,1.62777005]
[1729793605165,0.05780075,2524.6,2524.4,6.62624806]
[1729793605371,0.05780075,2524.6,2524.5,5.58895005]
[1729793605755,4.76648,2525.0,2524.5,5.58895005]
[1729793607381,0.806,2525.0,2524.7,1.62777005]
[1729793607557,4.76643,2525.0,2524.6,1.62777005]
[1729793607763,3.96056,2524.9,2524.5,1.62777005]
[1729793608071,3.96056,2524.9,2524.5,2.17777005]
[1729793608435,3.96056,2524.9,2524.5,6.13893005]
[1729793608638,3.96056,2524.9,2524.5,0.55]
[1729793609380,0.806,2525.0,2524.5,0.55]
[1729793609381,0.05561917,2524.8,2524.5,6.13885005]
[1729793609875,0.05552352,2524.7,2524.5,6.13885005]
[1729793610280,4.7664,2525.0,2524.5,6.13885005]
[1729793610460,0.05542786,2524.6,2524.5,6.13885005]
[1729793610658,4.7664,2525.0,2524.5,7.14885906]
[1729793610971,0.05542786,2524.6,2524.5,6.13885005]
[1729793611147,4.7664,2525.0,2524.5,6.13885005]
[1729793611338,0.05542786,2524.6,2524.5,6.13885005]
[1729793611532,4.7664,2525.0,2524.5,6.13885005]
[1729793612171,4.7664,2525.0,2524.4,5.58908005]
[1729793612172,4.01630898,2524.9,2524.4,5.58908005]
[1729793612378,4.01630898,2524.9,2524.5,1.62777005]
[1729793614671,4.01630898,2524.9,2524.5,5.58894005]
[1729793619680,4.01630898,2524.9,2524.5,5.58886005]
[1729793619681,0.05573898,2524.9,2524.5,5.58886005]
[1729793619851,0.05573898,2524.9,2524.6,5.58878005]
[1729793621475,0.05573898,2524.9,2524.7,5.58863005]
[1729793621705,0.05573898,2524.9,2524.8,3.9607]
[1729793622207,4.76937,2525.2,2524.8,3.9607]
[1729793622395,0.05503948,2524.9,2524.8,3.9607]
[1729793622595,4.76937,2525.2,2524.8,4.996588]
[1729793622794,0.05503948,2524.9,2524.8,3.9607]
[1729793622981,4.76937,2525.2,2524.8,3.9607]
[1729793623178,0.05503948,2524.9,2524.8,3.9607]
[1729793623709,4.76937,2525.2,2524.8,3.9607]
[1729793623921,0.05503948,2524.9,2524.8,3.9607]
[1729793624099,4.76937,2525.2,2524.8,3.9607]
[1729793624410,0.05503948,2524.9,2524.8,3.9607]
[1729793624615,4.76937,2525.2,2524.8,4.996588]
[1729793624771,4.76937,2525.2,2524.8,3.9607]
[1729793625142,0.05523073,2525.1,2524.9,3.96054]
[1729793626701,0.05523073,2525.1,2524.8,9.54907005]
[1729793627398,0.05523073,2525.1,2524.9,3.96052]
[1729793628109,0.05523073,2525.1,2524.8,3.96068]
[1729793629379,0.05523073,2525.1,2524.8,7.92132]
[1729793629575,0.05523073,2525.1,2524.8,10.58493906]
[1729793630391,0.05523073,2525.1,2524.8,8.95716901]
[1729793631111,0.05523073,2525.1,2524.8,4.99648901]
[1729793631314,0.05523073,2525.1,2524.8,3.96064]
[1729793631635,0.05523073,2525.1,2524.8,7.92128]
[1729793632414,0.05523073,2525.1,2524.8,3.96064]
[1729793633987,0.05523073,2525.1,2524.6,4.77032]
[1729793634284,3.96042,2525.0,2524.6,4.77032]
[1729793634685,0.05320756,2524.9,2524.6,4.77032]
[1729793635127,0.05320756,2524.9,2524.6,6.39809005]
[1729793635787,0.05320756,2524.9,2524.6,2.43717005]
[1729793636206,3.96048,2525.0,2524.6,2.43717005]
[1729793636412,0.05311192,2524.8,2524.6,6.39818005]
[1729793636623,3.96048,2525.0,2524.6,6.39818005]
[1729793636792,0.05301627,2524.7,2524.6,6.39818005]
[1729793636994,3.96048,2525.0,2524.6,7.43410306]
[1729793637217,0.05301627,2524.7,2524.6,7.43410306]
[1729793637405,3.96048,2525.0,2524.6,7.43410306]
[1729793637605,3.96048,2525.0,2524.6,6.39818005]
[1729793637807,0.05320756,2524.9,2524.6,6.39818005]
[1729793638202,0.05320756,2524.9,2524.7,3.96084]
[1729793638410,0.05320756,2524.9,2524.7,5.58861005]
[1729793638610,3.96026,2525.1,2524.7,3.96084]
[1729793638821,0.05311192,2524.8,2524.7,3.96084]
[1729793639025,3.96026,2525.1,2524.7,3.96084]
[1729793639227,0.05311192,2524.8,2524.7,3.96084]
[1729793639432,3.96026,2525.1,2524.7,4.99675001]
[1729793639636,0.05311192,2524.8,2524.7,3.96084]
[1729793639806,3.96026,2525.1,2524.7,3.96084]
[1729793640008,0.05311192,2524.8,2524.7,3.96084]
[1729793640233,3.96026,2525.1,2524.7,3.96084]
[1729793640437,0.05311192,2524.8,2524.7,3.96084]
[1729793640632,3.96042,2525.0,2524.6,6.39817005]
[1729793640931,3.96026,2525.1,2524.6,6.39817005]
[1729793640932,3.96055,2524.9,2524.6,4.7704]
[1729793641137,0.05320756,2524.9,2524.6,4.7704]
[1729793641339,0.05320756,2524.9,2524.6,6.39817005]
[1729793641637,0.05320756,2524.9,2524.7,3.96086]
[1729793643021,3.96032,2525.1,2524.7,3.96086]
[1729793643199,0.05133084,2524.8,2524.7,3.96086]
[1729793643400,3.96032,2525.1,2524.7,3.96086]
[1729793643932,0.05152211,2525.0,2524.7,3.96086]
[1729793644335,0.05152211,2525.0,2524.7,5.58863005]
[1729793644513,0.8092,2525.2,2524.7,5.58863005]
[1729793644514,0.8092,2525.2,2524.9,3.96055]
[1729793645005,0.05158087,2525.1,2524.9,3.96055]
[1729793646255,3.95995,2525.3,2524.9,3.96055]
[1729793646548,0.8008,2525.4,2524.9,3.96055]
[1729793646751,4.7606,2525.4,2525.0,3.96038]
[1729793646952,5.79540901,2525.4,2525.0,3.96038]
[1729793647156,0.0517721,2525.3,2525.0,3.96038]
[1729793647849,0.0517721,2525.3,2524.9,6.35353005]
[1729793648061,0.0517721,2525.3,2525.0,3.96035]
[1729793649458,0.0517721,2525.3,2525.0,3.96036]
[1729793649959,0.0517721,2525.3,2525.2,5.58785005]
[1729793650178,4.75741,2525.6,2525.2,1.62777005]
[1729793650458,0.0517721,2525.3,2525.1,9.54800005]
[1729793650658,4.75741,2525.6,2525.1,9.54800005]
[1729793650857,0.04997143,2525.2,2525.1,5.58788005]
[1729793651064,4.75741,2525.6,2525.2,3.96007]
[1729793654054,0.7979,2525.6,2525.2,6.35596005]
[1729793654353,0.7938,2525.8,2525.3,1.62777005]
[1729793654517,6.38071005,2525.8,2525.4,3.95976]
[1729793654919,2.42157005,2525.8,2525.3,3.95987]
[1729793655221,4.75297,2525.8,2525.4,3.95974]
[1729793655624,6.38074005,2525.8,2525.4,3.95974]
[1729793656319,4.75297,2525.8,2525.4,3.95974]
[1729793656751,0.7938,2525.8,2525.4,3.95967]
[1729793657837,0.7938,2525.8,2525.4,5.58744005]
[1729793658030,4.75296,2525.8,2525.4,3.95967]
[1729793658230,0.7938,2525.8,2525.4,3.95967]
[1729793659468,0.05061156,2525.7,2525.4,3.95967]
[1729793659823,4.75295,2525.8,2525.4,3.95967]
[1729793660062,0.05051598,2525.6,2525.4,3.95967]
[1729793660261,4.75295,2525.8,2525.4,3.95967]
[1729793660465,0.05042039,2525.5,2525.4,3.95967]
[1729793660631,4.75295,2525.8,2525.4,4.99122901]
[1729793660971,4.75295,2525.8,2525.4,3.95967]
[1729793661139,0.05061156,2525.7,2525.4,3.95967]
[1729793661347,4.75295,2525.8,2525.4,3.95967]
[1729793661649,0.05071496,2525.6,2525.4,3.95967]
[1729793661853,4.75295,2525.8,2525.4,3.95967]
[1729793662066,0.05061938,2525.5,2525.4,3.95967]
[1729793662229,4.75295,2525.8,2525.4,4.99122901]
[1729793662430,0.05061938,2525.5,2525.4,3.95967]
[1729793662641,4.75295,2525.8,2525.4,3.95967]
[1729793662855,0.05061938,2525.5,2525.4,3.95967]
[1729793663477,4.75295,2525.8,2525.4,3.95967]
[1729793663634,0.05061938,2525.5,2525.4,3.95967]
[1729793663840,4.75295,2525.8,2525.4,4.99122901]
[1729793664144,4.75295,2525.8,2525.4,3.95967]
[1729793664468,0.05081054,2525.7,2525.4,3.95967]
[1729793664844,4.75295,2525.8,2525.4,3.95967]
[1729793665048,0.05071496,2525.6,2525.4,3.95967]
[1729793665289,4.75295,2525.8,2525.4,3.95967]
[1729793665478,0.05061938,2525.5,2525.4,3.95967]
[1729793665655,4.75295,2525.8,2525.4,3.95967]
[1729793665855,0.05061938,2525.5,2525.4,3.95967]
[1729793666054,4.75295,2525.8,2525.4,3.95967]
[1729793666287,0.05061938,2525.5,2525.4,3.95967]
[1729793666890,4.75295,2525.8,2525.4,3.95967]
[1729793667488,0.05082528,2525.7,2525.4,9.54710005]
[1729793667691,0.05082528,2525.7,2525.6,6.13722005]
[1729793667992,3.9591,2525.9,2525.5,4.7438]
[1729793668159,6.39247005,2526.0,2525.5,4.7438]
[1729793668679,2.43357005,2526.0,2525.5,4.74372]
[1729793669003,3.95898,2525.9,2525.5,4.74372]
[1729793670387,0.05094666,2525.8,2525.5,8.70323]
[1729793670589,0.05094666,2525.8,2525.5,9.73635001]
[1729793670893,0.05094666,2525.8,2525.6,3.95937]
[1729793671195,5.58653005,2526.1,2525.6,3.95937]
[1729793671360,5.58653005,2526.1,2525.6,5.58714005]
[1729793671696,3.95876,2526.1,2525.7,5.58698005]
[1729793671998,3.95885,2526.0,2525.6,4.93454939]
[1729793672363,5.58653005,2526.1,2525.7,3.95927]
[1729793672886,5.58653005,2526.1,2525.6,6.56231944]
[1729793673194,5.58653005,2526.1,2525.7,3.95919]
[1729793673394,5.58631005,2526.2,2525.8,3.95909]
[1729793673995,0.04953148,2526.1,2525.8,3.95909]
[1729793674895,0.04953148,2526.1,2525.8,0.8249]
[1729793675061,0.04953148,2526.1,2525.8,4.78395]
[1729793675268,1.62777005,2526.2,2525.8,4.78395]
[1729793675603,9.54474005,2526.3,2525.8,4.78395]
[1729793675798,0.04964935,2526.1,2525.8,4.78395]
[1729793676091,5.58625005,2526.3,2525.8,4.78395]
[1729793676397,5.58622005,2526.3,2525.8,4.78395]
[1729793676588,1.67751494,2526.2,2525.8,4.78395]
[1729793676786,0.04974489,2526.2,2525.9,3.95897]
[1729793676962,9.54469005,2526.3,2525.9,3.95897]
[1729793677271,6.4643694,2526.1,2525.7,4.50928]
[1729793677463,6.41472005,2526.1,2525.7,4.50928]
[1729793677667,0.0495538,2526.0,2525.7,4.50928]
[1729793678659,0.0495538,2526.0,2525.7,4.50922]
[1729793683365,0.0495538,2526.0,2525.7,8.46844]
[1729793684562,0.0495538,2526.0,2525.7,4.50922]
[1729793684759,0.0495538,2526.0,2525.7,8.46841]
[1729793684961,0.0495538,2526.0,2525.7,4.50919]
[1729793685204,0.0495538,2526.0,2525.7,8.46839]
[1729793686200,0.0495538,2526.0,2525.7,4.50919]
[1729793686415,2.32374323,2526.0,2525.5,0.8249]
[1729793686703,4.0084038,2526.0,2525.6,3.95945]
[1729793686863,4.0084038,2526.0,2525.6,7.91884]
[1729793687067,0.0495538,2526.0,2525.7,3.95926]
[1729793689699,4.0084538,2526.0,2525.6,3.95939]
[1729793689905,4.0084538,2526.0,2525.6,7.91876]
[1729793690324,4.0084538,2526.0,2525.5,0.8249]
[1729793690502,1.67732385,2526.0,2525.6,3.95941]
[1729793690827,5.63616385,2526.0,2525.5,8.74395]
[1729793690975,5.63616385,2526.0,2525.5,8.74394]
[1729793691168,5.63616385,2526.0,2525.5,4.7844]
[1729793691372,3.95903,2525.9,2525.5,4.7844]
[1729793691672,4.0068928,2525.9,2525.5,4.7844]
[1729793692193,4.0068928,2525.9,2525.5,8.74394]
[1729793692505,4.0068928,2525.9,2525.5,4.7844]
[1729793693305,4.0068928,2525.9,2525.5,8.74393]
[1729793693704,4.0068928,2525.9,2525.5,4.7844]
[1729793694773,4.0068928,2525.9,2525.5,8.74393]
[1729793695114,0.0478628,2525.9,2525.5,4.7844]
[1729793695619,0.0478628,2525.9,2525.6,3.95943]
[1729793696203,4.0068728,2525.9,2525.5,4.7844]
[1729793696822,4.0068728,2525.9,2525.5,8.74394]
[1729793697421,4.0068728,2525.9,2525.5,4.7844]
[1729793697620,4.0068728,2525.9,2525.5,8.74392]
[1729793698938,4.0068728,2525.9,2525.5,4.7844]
[1729793699298,0.7712,2525.8,2525.5,3.9595]
[1729793699503,0.04767167,2525.7,2525.5,3.9595]
[1729793699703,0.7712,2525.8,2525.5,3.9595]
[1729793700014,0.04767167,2525.7,2525.5,3.9595]
[1729793700213,0.7712,2525.8,2525.5,3.9595]
[1729793700425,0.04755032,2525.6,2525.5,3.9595]
[1729793700926,1.62777005,2525.6,2525.3,4.78225611]
[1729793701105,0.63583301,2525.6,2525.2,0.7759]
[1729793701303,0.04745473,2525.5,2525.2,8.75746008]
[1729793701536,0.04745473,2525.5,2525.3,1.02150319]
[1729793701696,6.35813005,2525.8,2525.4,3.95976]
[1729793702033,4.73036,2525.8,2525.4,3.95976]
[1729793702336,6.35813005,2525.8,2525.4,3.95976]
[1729793702640,4.73036,2525.8,2525.4,3.95976]
[1729793702858,2.39897005,2525.7,2525.2,3.0]
[1729793703132,2.39897005,2525.5,2525.1,3.96013]
[1729793703338,2.39897005,2525.5,2525.2,3.96005]
[1729793703549,0.04725596,2525.4,2525.1,3.96013]
[1729793705403,0.04725596,2525.4,2525.1,7.92029]
[1729793705602,1.62777005,2525.2,2524.8,7.78292611]
[1729793705807,4.73126,2525.3,2524.9,3.96054]
[1729793705808,6.40617936,2525.3,2524.9,3.96054]
[1729793706028,6.40617936,2525.3,2525.0,3.96038]
[1729793706029,0.04691755,2525.1,2525.0,3.96038]
[1729793706209,6.35892005,2525.3,2524.9,3.96054]
[1729793706407,0.04691755,2525.1,2524.9,3.96054]
[1729793706607,6.35892005,2525.3,2524.8,6.96069]
[1729793706827,0.04682193,2525.0,2524.9,3.96054]
[1729793707141,0.04682193,2525.0,2524.9,7.92102]
[1729793707303,10.31894005,2525.3,2524.9,3.96048]
[1729793707499,6.35892005,2525.3,2524.9,3.96048]
[1729793707749,0.04701317,2525.2,2524.9,3.96048]
[1729793708104,4.73115,2525.3,2524.9,7.92091]
[1729793708303,6.35892005,2525.3,2524.9,3.96045]
[1729793708850,6.35892005,2525.3,2524.8,6.96068]
[1729793708851,1.67478322,2525.2,2524.8,6.96068]
[1729793709159,0.04701317,2525.2,2524.8,6.96068]
[1729793709328,0.04701317,2525.2,2524.9,3.96053]
[1729793709501,6.35892005,2525.3,2524.9,3.96053]
[1729793709902,0.7712,2525.3,2524.9,3.96053]
[1729793710206,0.04701317,2525.2,2525.0,3.96037]
[1729793710423,0.7712,2525.3,2525.0,3.96037]
[1729793710753,0.7712,2525.3,2524.8,4.62777005]
[1729793710973,0.04698778,2525.2,2524.9,3.96048]
[1729793711250,0.7712,2525.3,2524.9,7.92096]
[1729793711466,0.04691755,2525.1,2524.9,3.96048]
[1729793711618,0.7712,2525.3,2525.1,3.96021]
[1729793711951,0.7712,2525.3,2525.0,7.92069]
[1729793712156,0.7712,2525.3,2525.0,3.9603]
[1729793712573,6.35889005,2525.3,2524.9,3.96053]
[1729793712735,6.35889005,2525.3,2524.8,3.96057]
[1729793712736,5.58793005,2525.2,2524.8,3.96057]
[1729793713260,3.96016,2525.2,2524.8,3.96057]
[1729793713554,5.58793005,2525.2,2524.8,3.96057]
[1729793714132,0.04674808,2525.1,2524.8,3.96057]
[1729793715491,0.04674808,2525.1,2524.8,7.92118]
[1729793715811,0.7712,2525.3,2524.9,3.96053]
[1729793716091,0.04665246,2525.0,2524.9,3.96053]
[1729793716295,4.73114,2525.3,2524.9,3.96053]
[1729793716503,0.04665246,2525.0,2524.9,3.96053]
[1729793716702,4.73114,2525.3,2524.9,5.09142651]
[1729793716858,4.73114,2525.3,2524.9,3.96053]
[1729793716859,0.04665246,2525.0,2524.9,3.96053]
[1729793717064,4.73114,2525.3,2524.9,5.58830005]
[1729793717398,4.73114,2525.3,2524.9,3.96053]
[1729793717702,0.0468437,2525.2,2524.8,6.39354005]
[1729793717991,4.73114,2525.3,2524.8,10.35415005]
[1729793718198,0.04674808,2525.1,2524.8,6.39354005]
[1729793718378,4.73114,2525.3,2524.8,6.39354005]
[1729793718583,0.04665246,2525.0,2524.8,6.39354005]
[1729793718881,4.73114,2525.3,2524.9,3.96048]
[1729793719804,3.9601,2525.2,2524.8,6.39354005]
[1729793720002,3.9601,2525.2,2524.8,4.76577]
[1729793720383,4.73114,2525.3,2524.8,4.76577]
[1729793720702,6.35891005,2525.3,2524.8,8.72638]
[1729793721072,4.73114,2525.3,2524.9,3.96051]
[1729793721782,4.73114,2525.3,2524.8,6.39354005]
[1729793721971,4.73114,2525.3,2524.8,10.35415005]
[1729793722484,4.73114,2525.3,2524.9,3.96053]
[1729793722944,4.73114,2525.3,2524.8,6.39354005]
[1729793723202,3.9601,2525.2,2524.8,6.39354005]
[1729793723402,3.9601,2525.2,2524.8,4.76577]
[1729793723603,6.35892005,2525.3,2524.8,8.72636]
[1729793723973,3.9601,2525.2,2524.8,3.96057]
[1729793725103,5.58787005,2525.2,2524.8,3.96057]
[1729793725323,0.7501,2524.8,2524.2,0.82235611]
[1729793725471,3.96165,2524.2,2523.8,5.57509611]
[1729793725672,5.58942005,2524.2,2523.8,4.75274]
[1729793725878,6.33937005,2524.3,2523.8,4.75274]
[1729793726113,6.33937005,2524.3,2523.9,3.96209]
[1729793726615,6.33948005,2524.3,2523.8,5.86927762]
[1729793727029,1.62777005,2524.2,2523.8,5.86927762]
[1729793727185,6.33948005,2524.3,2523.8,5.86927762]
[1729793727705,6.33947005,2524.3,2523.8,5.86927762]
[1729793728216,1.62777005,2524.1,2523.8,0.7905]
[1729793728420,1.62777005,2524.1,2523.8,4.75277]
[1729793728721,1.62777005,2524.0,2523.8,0.7905]
[1729793728889,1.62777005,2524.0,2523.6,3.96251]
[1729793728890,0.8301,2523.9,2523.6,3.96251]
[1729793729409,4.79193,2524.1,2523.7,3.96242]
[1729793729608,4.7915,2524.4,2523.9,3.96205]
[1729793729785,1.62777005,2524.3,2523.9,4.75072]
[1729793729989,5.58933005,2524.3,2523.9,3.96212]
[1729793730475,1.62777005,2524.2,2523.9,3.96212]
[1729793730584,5.58929005,2524.3,2523.9,3.96212]
[1729793731201,1.62777005,2524.3,2524.0,3.96193]
[1729793731614,4.7915,2524.4,2524.0,3.96193]
[1729793731814,1.62777005,2524.3,2523.8,5.59002005]
[1729793732128,5.58935005,2524.3,2523.8,8.69573881]
[1729793732326,5.58935005,2524.3,2523.8,4.73348881]
[1729793733030,0.04535529,2524.2,2523.8,4.73345881]
[1729793733187,5.58935005,2524.3,2523.9,3.96205]
[1729793733386,0.04525961,2524.1,2523.9,3.96205]
[1729793733626,5.58935005,2524.3,2523.9,3.96205]
[1729793733833,0.04516391,2524.0,2523.9,3.96202]
[1729793733993,1.62777005,2524.3,2523.9,3.96202]
[1729793734189,0.04516391,2524.0,2523.9,3.96202]
[1729793734391,5.58932005,2524.3,2523.9,3.96202]
[1729793734590,0.04516391,2524.0,2523.9,3.96202]
[1729793734806,1.62777005,2524.3,2523.9,3.96202]
[1729793735004,0.04516391,2524.0,2523.9,3.96202]
[1729793735216,1.62777005,2524.3,2523.9,3.96202]
[1729793735414,0.04516391,2524.0,2523.9,3.96202]
[1729793735688,5.58928005,2524.3,2523.8,4.73352881]
[1729793735927,0.04516391,2524.0,2523.8,3.96225]
[1729793736131,5.58928005,2524.3,2523.8,3.96225]